bitfinex-derivatives/quotes_ETHF0:USTF0_20240923
["timestamp","ask_amount","ask_price","bid_price","bid_amount"]
[1727079420709,2.06,2641.1,2640.9,3.2078]
[1727079421005,2.06,2641.1,2640.9,33.2078]
[1727079421207,0.37866,2641.0,2640.9,3.2078]
[1727079421410,2.06,2641.1,2640.8,0.75488]
[1727079421602,2.43866,2641.1,2640.9,3.2078]
[1727079421805,2.43866,2641.1,2640.8,30.75488]
[1727079422509,0.37866,2641.0,2640.8,30.3762]
[1727079423008,2.43865,2641.1,2640.8,30.75489]
[1727079423219,0.37866,2641.0,2640.8,30.3762]
[1727079423412,0.3787,2640.7,2640.6,3.2078]
[1727079423899,2.4578,2640.9,2640.6,3.2078]
[1727079423900,0.7597,2640.8,2640.6,3.2078]
[1727079425416,2.4387,2640.7,2640.6,3.2078]
[1727079425611,0.37872,2640.6,2640.3,0.3845]
[1727079425813,0.37872,2640.6,2640.2,3.2078]
[1727079425814,2.06,2640.5,2640.2,3.2078]
[1727079426123,2.43874,2640.5,2640.2,3.2078]
[1727079426412,2.06,2640.5,2640.2,3.2078]
[1727079426604,2.06,2640.5,2640.3,0.37876]
[1727079426805,2.06,2640.7,2640.3,0.37876]
[1727079427209,2.4387,2640.7,2640.3,0.37876]
[1727079427813,0.37872,2640.6,2640.2,3.58657]
[1727079428111,0.37873,2640.5,2640.2,3.2078]
[1727079429721,0.37872,2640.6,2640.2,3.58657]
[1727079429917,2.06,2640.7,2640.2,3.2078]
[1727079430519,2.06,2640.7,2640.3,30.37876]
[1727079430712,2.06,2640.7,2640.3,30.0]
[1727079430905,0.3978,2640.9,2640.5,3.2078]
[1727079431213,2.06,2641.1,2640.5,3.2078]
[1727079431214,2.06,2641.1,2640.8,0.37868]
[1727079431416,3.1843,2641.3,2640.8,3.2078]
[1727079431716,2.8215,2641.3,2641.0,0.37865]
[1727079431914,2.8215,2641.3,2640.7,0.3772]
[1727079431915,3.20012,2641.3,2640.9,0.37866]
[1727079432116,3.20012,2641.3,2641.0,0.37866]
[1727079432311,2.8215,2641.3,2641.0,0.37866]
[1727079432814,2.8215,2641.3,2640.8,3.2078]
[1727079433011,2.43865,2641.1,2640.8,3.2078]
[1727079433920,2.06,2640.9,2640.5,3.2078]
[1727079434125,2.06,2640.6,2640.5,3.2078]
[1727079434322,0.3916,2640.8,2640.5,3.2078]
[1727079434323,2.8376,2640.8,2640.5,3.2078]
[1727079435218,2.8376,2640.8,2640.5,3.58653]
[1727079435429,0.37868,2640.9,2640.5,3.58653]
[1727079435430,2.06,2641.1,2640.5,3.2078]
[1727079435725,4.127,2641.6,2640.8,3.58648]
[1727079435726,2.446,2641.3,2640.8,3.58648]
[1727079435924,2.446,2641.3,2640.9,0.7678]
[1727079435925,0.37863,2641.2,2640.9,0.7678]
[1727079436311,2.43862,2641.3,2640.9,0.7678]
[1727079436522,2.06,2641.3,2640.9,0.7678]
[1727079436709,2.06,2641.1,2640.9,0.7678]
[1727079437021,2.43865,2641.1,2640.9,0.7678]
[1727079437624,0.37866,2641.0,2640.9,0.7678]
[1727079437925,3.7864,2641.0,2640.4,0.3729]
[1727079438213,2.06,2640.6,2640.4,0.7556]
[1727079438607,0.37876,2640.3,2640.0,3.2078]
[1727079438808,2.43875,2640.4,2640.1,0.3827]
[1727079439009,2.43875,2640.4,2640.1,30.3827]
[1727079439828,2.06,2640.6,2640.1,30.76148]
[1727079440124,0.37873,2640.5,2640.1,30.76148]
[1727079440312,0.37875,2640.4,2640.1,30.3827]
[1727079440814,0.37874,2640.5,2640.1,30.76148]
[1727079441517,2.06,2640.6,2640.1,30.3827]
[1727079441713,2.06,2640.3,2640.1,30.3827]
[1727079442114,2.06,2640.3,2640.1,30.76149]
[1727079442310,2.43874,2640.5,2640.1,30.76149]
[1727079442715,2.06,2640.5,2640.2,0.37877]
[1727079443014,2.06,2640.5,2640.2,0.37876]
[1727079443326,5.28612,2640.9,2640.2,3.7872]
[1727079443327,2.06,2640.7,2640.2,3.7872]
[1727079443512,2.06,2640.7,2640.4,0.37874]
[1727079443721,2.43871,2640.7,2640.5,0.7425]
[1727079444625,2.06,2640.7,2640.5,0.7425]
[1727079445110,2.06,2640.7,2640.6,0.3974]
[1727079446418,2.06,2641.0,2640.7,0.3787]
[1727079446721,2.43866,2641.0,2640.7,0.3787]
[1727079448516,0.37868,2640.9,2640.6,0.77612]
[1727079449319,2.43866,2641.0,2640.6,0.77612]
[1727079449623,2.06,2641.0,2640.8,0.37868]
[1727079449818,2.43866,2641.0,2640.7,0.37869]
[1727079450231,0.37867,2640.9,2640.6,0.77611]
[1727079450522,0.37869,2640.8,2640.6,0.77611]
[1727079450718,0.3863,2640.9,2640.6,0.3974]
[1727079451222,0.37872,2640.6,2640.2,3.2078]
[1727079451416,0.3863,2640.9,2640.2,3.9774]
[1727079451417,2.06,2640.5,2640.2,3.9774]
[1727079451728,0.76498,2640.9,2640.3,0.3752]
[1727079451922,4.50565,2641.1,2640.5,3.2078]
[1727079452228,0.37865,2641.1,2640.8,0.37868]
[1727079452520,0.37862,2641.3,2640.9,0.75386]
[1727079452722,0.37862,2641.3,2640.9,1.1301]
[1727079453021,0.37866,2641.0,2640.9,0.7582]
[1727079453230,2.43866,2641.0,2640.9,0.3752]
[1727079454720,2.06,2641.0,2640.9,0.3752]
[1727079454924,2.06,2641.2,2640.9,0.3752]
[1727079455124,2.06,2641.2,2641.0,0.37865]
[1727079455333,2.06,2641.2,2640.9,0.3752]
[1727079455520,2.06,2641.0,2640.9,0.3752]
[1727079456026,2.83416,2641.0,2640.8,3.2078]
[1727079456618,2.4555,2641.0,2640.8,3.2078]
[1727079457120,0.3955,2641.0,2640.8,3.2078]
[1727079458122,0.77416,2641.0,2640.8,3.2078]
[1727079458518,0.37867,2640.9,2640.8,3.2078]
[1727079458733,0.3965,2640.9,2640.8,3.2078]
[1727079459823,0.3965,2640.9,2640.5,0.98818922]
[1727079459824,0.3787,2640.7,2640.5,0.98818922]
[1727079460018,2.4565,2640.9,2640.4,4.19598922]
[1727079460225,0.37871,2640.7,2640.4,4.19598922]
[1727079460425,0.37872,2640.6,2640.4,4.19598922]
[1727079460620,2.4565,2640.9,2640.4,3.2078]
[1727079460621,2.43873,2640.5,2640.4,3.2078]
[1727079460932,2.06,2640.5,2640.4,3.2078]
[1727079461425,2.43873,2640.5,2640.4,3.2078]
[1727079461829,2.06,2640.5,2640.4,3.2078]
[1727079462231,2.43873,2640.5,2640.4,3.2078]
[1727079462731,0.37876,2640.3,2640.1,30.98818922]
[1727079463036,2.06,2640.3,2640.1,30.98818922]
[1727079463227,1.1484,2640.4,2640.1,30.98818922]
[1727079463228,0.7802,2640.4,2640.1,30.98818922]
[1727079463427,2.06,2640.5,2640.3,0.37876]
[1727079463624,2.06,2640.5,2640.2,2.12194922]
[1727079464930,2.06,2640.7,2640.3,0.98818922]
[1727079465122,2.06,2640.7,2640.4,0.3745]
[1727079465328,2.06,2640.7,2640.5,0.37872]
[1727079466530,1.17498,2640.9,2640.5,0.98818922]
[1727079466731,1.17498,2640.9,2640.6,1.36689922]
[1727079466926,1.17498,2640.9,2640.7,0.3787]
[1727079467123,0.7963,2640.9,2640.7,0.98818922]
[1727079467530,0.7963,2640.9,2640.7,1.36687922]
[1727079467733,1.17497,2640.9,2640.7,1.36687922]
[1727079467935,0.7963,2640.9,2640.7,1.36687922]
[1727079468134,0.3981,2640.9,2640.7,1.36687922]
[1727079468334,0.77677,2640.9,2640.7,1.36687922]
[1727079468538,0.3981,2640.9,2640.7,1.36687922]
[1727079468839,0.3981,2640.9,2640.2,2.815]
[1727079468840,0.37877,2640.2,2639.8,1.96715386]
[1727079469041,2.06,2639.9,2639.6,0.392]
[1727079469247,2.06,2639.7,2639.6,0.392]
[1727079469741,2.43882,2639.9,2639.6,0.392]
[1727079469940,2.43882,2639.9,2639.2,30.0]
[1727079469941,2.06,2639.7,2639.2,30.0]
[1727079470142,3.42367357,2640.2,2639.0,5.17495386]
[1727079470143,2.06,2639.4,2639.3,0.392]
[1727079470341,2.4389,2639.4,2639.0,3.2078]
[1727079470640,0.3789,2639.4,2639.1,0.392]
[1727079470846,3.5867,2639.4,2639.1,0.392]
[1727079471741,2.06,2639.2,2639.1,0.392]
[1727079473939,1.9808852,2639.5,2639.0,3.2078]
[1727079474141,2.06,2639.7,2639.1,1.1219]
[1727079474340,2.06,2639.7,2639.3,3.2078]
[1727079474647,3.2078,2640.0,2639.3,3.2078]
[1727079474852,2.06,2640.6,2639.6,5.2678]
[1727079475140,2.06,2640.6,2639.7,1.28083578]
[1727079475340,2.06,2640.6,2639.9,3.2078]
[1727079475547,2.06,2640.6,2639.9,3.58661]
[1727079475738,2.06,2640.6,2640.2,3.2078]
[1727079476441,2.06,2640.6,2639.9,0.37881]
[1727079476442,2.06,2640.6,2639.8,0.37883]
[1727079476642,2.06,2640.6,2640.0,3.2078]
[1727079477149,2.43872,2640.6,2640.0,3.2078]
[1727079478049,2.43872,2640.6,2640.1,0.7608]
[1727079478439,5.7578,2640.8,2640.1,0.7608]
[1727079479051,0.37873,2640.6,2640.1,0.7608]
[1727079479448,0.37873,2640.5,2640.1,0.7608]
[1727079479650,0.37871,2640.7,2640.1,0.7608]
[1727079479961,3.2078,2640.5,2640.2,29.7]
[1727079480147,2.55,2640.5,2640.2,29.7]
[1727079480452,2.55,2640.5,2640.1,0.7608]
[1727079480644,5.7578,2640.8,2640.1,0.7608]
[1727079480860,5.7578,2640.8,2640.1,30.4608]
[1727079481041,3.58649,2640.8,2640.1,30.83959]
[1727079481243,3.58649,2640.8,2640.3,3.2078]
[1727079481244,3.2078,2640.8,2640.3,3.2078]
[1727079482157,0.37872,2640.6,2640.3,3.2078]
[1727079482647,3.2078,2640.8,2640.1,30.4608]
[1727079482648,2.55,2640.7,2640.1,30.4608]
[1727079482853,2.9439,2640.7,2640.1,30.4608]
[1727079483043,0.37874,2640.5,2640.1,30.4608]
[1727079483243,3.2078,2640.5,2640.1,30.4608]
[1727079483445,5.7578,2640.4,2640.1,0.3721]
[1727079483644,0.37876,2640.3,2640.1,0.3721]
[1727079483958,6.1274,2640.4,2640.1,0.3721]
[1727079483959,0.37877,2640.2,2640.1,0.3721]
[1727079484144,0.37879,2640.1,2639.9,0.3962]
[1727079484345,0.37878,2640.2,2639.9,0.3962]
[1727079484547,0.37877,2640.3,2639.9,0.3962]
[1727079484750,3.32261,2640.7,2640.1,0.37878]
[1727079484950,3.2078,2640.8,2640.3,0.37875]
[1727079485257,0.37872,2640.6,2640.4,0.3808]
[1727079485453,2.55,2640.7,2640.4,0.3808]
[1727079485454,3.29831,2640.7,2640.4,0.3808]
[1727079485650,2.92867,2641.0,2640.4,3.96733]
[1727079485839,2.92867,2641.0,2640.5,0.399]
[1727079485840,2.55,2641.0,2640.5,0.399]
[1727079486048,0.37866,2641.0,2640.5,0.399]
[1727079486441,0.37868,2640.9,2640.5,0.399]
[1727079486646,2.55,2641.0,2640.5,0.399]
[1727079487646,2.55,2640.7,2640.4,3.5886]
[1727079487956,0.37877,2640.2,2640.0,29.7]
[1727079488251,0.37879,2640.1,2639.8,4.3735]
[1727079488455,0.37879,2640.1,2639.8,1.1657]
[1727079488649,3.49687,2640.4,2639.8,30.8657]
[1727079489043,3.49687,2640.4,2639.8,0.3856]
[1727079489044,0.37882,2639.9,2639.8,0.3856]
[1727079489460,0.37883,2639.9,2639.4,0.37889]
[1727079489755,0.37883,2639.9,2639.6,3.2078]
[1727079489944,0.37883,2639.8,2639.7,0.3731]
[1727079490145,2.9437,2640.1,2639.7,0.3731]
[1727079490446,2.55,2639.8,2639.3,0.772]
[1727079490651,0.3789,2639.3,2639.1,0.3731]
[1727079490957,0.37891,2639.3,2639.1,0.3731]
[1727079491456,0.37891,2639.3,2638.8,29.7]
[1727079491657,0.37891,2639.3,2639.0,0.3731]
[1727079492156,0.37889,2639.4,2639.0,0.3731]
[1727079492357,2.9437,2639.5,2639.0,0.3731]
[1727079492556,0.37893,2639.1,2639.0,0.3731]
[1727079493462,0.37893,2639.1,2638.5,3.2078]
[1727079493463,6.3396,2639.1,2638.5,3.2078]
[1727079493650,3.2078,2639.0,2638.5,3.2078]
[1727079494157,3.2078,2639.0,2638.6,29.7]
[1727079494454,3.2078,2639.0,2638.5,3.2078]
[1727079494660,0.3804,2638.9,2638.5,3.2078]
[1727079495050,0.379,2638.6,2638.4,0.3597]
[1727079495459,0.379,2638.6,2638.2,3.2078]
[1727079495657,2.55,2638.5,2637.8,3.2078]
[1727079495860,0.37905,2638.3,2637.8,3.2078]
[1727079496165,0.37903,2638.4,2637.9,0.3715]
[1727079496365,0.37903,2638.4,2638.0,0.3943]
[1727079496660,3.2078,2638.7,2638.1,3.2078]
[1727079496861,3.2078,2638.7,2638.2,0.37905]
[1727079497168,3.2078,2638.7,2638.3,0.37904]
[1727079497459,3.2078,2638.7,2638.4,0.3723]
[1727079497663,0.37896,2639.0,2638.4,3.5801]
[1727079497848,0.379,2638.6,2638.5,0.3857]
[1727079498052,2.55,2638.7,2638.0,0.3943]
[1727079498255,0.37901,2638.6,2638.1,0.37907]
[1727079498457,0.37901,2638.6,2638.0,0.3943]
[1727079498458,2.55,2638.7,2638.2,0.3925]
[1727079498666,0.37902,2638.5,2638.2,0.3925]
[1727079499258,2.55,2638.7,2638.0,0.3943]
[1727079499453,0.37906,2638.2,2638.0,0.3943]
[1727079499675,3.2078,2638.5,2638.0,0.3943]
[1727079499863,0.37905,2638.3,2638.0,0.3943]
[1727079500360,3.2078,2638.5,2638.0,0.3943]
[1727079500667,3.58682,2638.5,2638.0,0.77339]
[1727079501167,3.58682,2638.5,2638.0,0.3943]
[1727079501461,3.58682,2638.5,2638.0,0.5024]
[1727079501650,3.2078,2638.5,2638.0,3.7102]
[1727079501850,3.58682,2638.5,2638.1,0.37907]
[1727079502059,3.58682,2638.5,2638.2,0.3907]
[1727079502257,3.2078,2638.5,2638.2,0.7782]
[1727079502651,3.58683,2638.5,2638.2,0.7782]
[1727079503771,3.2078,2638.5,2638.2,0.7782]
[1727079504161,4.5084,2639.1,2638.3,3.2078]
[1727079504360,4.5084,2639.1,2638.2,4.5686]
[1727079504361,6.197,2639.4,2638.6,3.2078]
[1727079504559,4.127,2639.4,2638.9,0.37895]
[1727079504870,0.37891,2639.3,2639.0,0.3846]
[1727079505369,0.37892,2639.2,2639.0,0.3846]
[1727079505666,0.37891,2639.3,2639.0,0.3846]
[1727079505964,2.44891,2639.3,2639.0,0.3846]
[1727079506167,0.37892,2639.2,2639.0,0.3846]
[1727079506568,0.37891,2639.3,2639.0,0.3846]
[1727079507161,4.127,2639.9,2639.0,0.3846]
[1727079507162,4.127,2639.9,2639.1,6.9966]
[1727079507459,4.50582,2639.9,2639.5,0.37887]
[1727079507661,0.37882,2639.9,2639.6,0.3869]
[1727079507861,3.2078,2640.0,2639.6,0.3869]
[1727079508370,0.37884,2639.7,2639.6,0.3869]
[1727079508670,3.49712,2639.7,2639.0,0.3846]
[1727079508962,0.37889,2639.4,2639.1,0.3869]
[1727079509558,0.37887,2639.6,2639.1,0.76583]
[1727079509879,3.58661,2640.0,2639.3,3.2078]
[1727079510165,3.58661,2640.0,2639.6,0.37886]
[1727079510358,3.58661,2640.0,2639.7,0.3859]
[1727079510759,0.3788,2640.1,2639.7,0.76473]
[1727079510954,0.37879,2640.1,2639.7,0.76474]
[1727079511469,0.3978,2640.5,2639.8,4.16682]
[1727079511771,0.3978,2640.5,2640.0,0.3788]
[1727079511772,0.37875,2640.4,2640.0,0.3788]
[1727079512063,0.3978,2640.5,2639.8,0.3629]
[1727079512064,0.37879,2640.1,2639.8,0.3629]
[1727079512266,0.37881,2640.0,2639.8,0.3629]
[1727079512469,0.37881,2640.0,2639.7,0.3859]
[1727079512470,0.37883,2639.8,2639.7,0.3859]
[1727079513057,0.94694,2640.2,2639.7,0.3859]
[1727079513058,4.15474,2640.2,2639.7,0.3859]
[1727079513263,0.37882,2639.9,2639.7,0.3859]
[1727079513466,5.7578,2640.3,2639.7,0.3859]
[1727079513674,0.37879,2640.1,2639.7,0.3859]
[1727079513863,0.37879,2640.1,2639.7,0.76474]
[1727079514266,0.94694,2640.2,2639.7,0.3859]
[1727079514567,0.37883,2639.9,2639.7,0.3859]
[1727079514958,0.37889,2639.4,2638.9,3.2078]
[1727079515163,0.94709,2639.8,2639.0,0.7292]
[1727079515164,2.92887,2639.6,2639.0,0.7292]
[1727079515367,2.92886,2639.6,2639.0,0.7292]
[1727079515565,3.5804,2639.8,2639.0,0.7292]
[1727079515566,0.37888,2639.5,2639.0,0.7292]
[1727079515775,3.5804,2639.8,2639.0,1.10814]
[1727079515969,0.37886,2639.7,2639.0,1.10814]
[1727079516173,0.37886,2639.6,2639.0,0.7292]
[1727079516565,3.5804,2639.8,2639.0,0.7292]
[1727079516766,0.37888,2639.5,2639.0,0.7292]
[1727079517068,3.9788,2639.8,2639.0,0.7292]
[1727079517263,0.37888,2639.5,2639.0,0.7292]
[1727079517776,0.37889,2639.4,2639.0,0.7292]
[1727079519372,0.37889,2639.4,2639.0,1.10814]
[1727079519559,0.37886,2639.7,2639.2,0.37891]
[1727079520178,0.37886,2639.7,2639.3,0.3789]
[1727079520368,0.37886,2639.7,2639.4,0.3835]
[1727079520573,3.2078,2640.0,2639.5,0.3739]
[1727079520872,3.2078,2640.0,2639.6,0.37885]
[1727079521073,3.2078,2640.0,2639.6,0.3662]
[1727079521275,3.2078,2640.0,2639.6,0.74505]
[1727079521475,0.3788,2640.1,2639.6,0.74505]
[1727079521678,0.3788,2640.0,2639.6,0.74505]
[1727079521881,0.37882,2639.9,2639.6,0.3662]
[1727079522269,0.3783,2639.8,2639.1,3.2078]
[1727079522476,0.37886,2639.6,2639.2,0.37891]
[1727079522665,0.37886,2639.6,2639.1,3.58672]
[1727079523273,0.3783,2639.8,2639.1,3.2078]
[1727079523478,2.9201,2639.5,2638.8,0.37897]
[1727079523670,0.37892,2639.2,2638.7,3.58678]
[1727079523870,0.37892,2639.2,2638.7,33.28678]
[1727079525577,6.1279,2639.5,2639.0,3.2078]
[1727079525578,0.3789,2639.4,2639.0,3.2078]
[1727079525775,3.2078,2639.5,2639.1,0.733]
[1727079526880,0.37889,2639.4,2639.1,0.733]
[1727079527179,0.37888,2639.5,2639.1,0.733]
[1727079527577,0.37888,2639.5,2639.2,0.3845]
[1727079529383,0.37889,2639.4,2639.2,0.3845]
[1727079531281,0.37888,2639.5,2639.2,0.3845]
[1727079531682,0.37889,2639.4,2639.2,0.3845]
[1727079532489,0.37888,2639.5,2639.2,0.3845]
[1727079532688,3.58664,2639.8,2639.4,0.37888]
[1727079532994,3.2078,2639.8,2639.5,0.37887]
[1727079533293,3.2078,2639.8,2639.6,0.7775]
[1727079533490,0.37884,2639.7,2639.6,0.7775]
[1727079533885,0.37884,2639.8,2639.6,0.7775]
[1727079534290,0.3819,2640.0,2639.6,0.7775]
[1727079534594,0.37882,2639.9,2639.6,0.7775]
[1727079536787,0.37883,2639.8,2639.6,0.7775]
[1727079536991,0.37882,2639.9,2639.6,0.7775]
[1727079537381,0.76071,2640.0,2639.6,0.7775]
[1727079537584,0.76071,2640.0,2639.6,1.15636]
[1727079537789,0.76071,2640.0,2639.6,0.7775]
[1727079538284,0.37881,2640.0,2639.6,0.7775]
[1727079538484,0.37881,2640.0,2639.7,0.3907]
[1727079538683,0.37882,2639.9,2639.7,0.3907]
[1727079539294,0.37883,2639.8,2639.7,0.3907]
[1727079539691,2.55,2639.9,2639.5,3.2078]
[1727079539890,0.37888,2639.5,2639.1,3.69483]
[1727079540388,0.37888,2639.5,2639.1,3.3159]
[1727079540590,0.37888,2639.5,2639.1,3.69482]
[1727079540893,0.11085928,2639.3,2639.1,3.69482]
[1727079541093,0.11085928,2639.3,2639.2,3.7888]
[1727079541283,0.11085928,2639.3,2639.1,7.1047]
[1727079541482,0.11085928,2639.3,2639.1,3.3159]
[1727079541690,0.11085928,2639.3,2639.1,0.1081]
[1727079541691,0.37892,2639.2,2639.1,0.1081]
[1727079542189,0.48977928,2639.2,2639.1,0.1081]
[1727079542987,3.98707928,2639.2,2639.1,0.1081]
[1727079543798,13.77587928,2639.2,2639.1,0.1081]
[1727079544494,0.379,2638.7,2638.4,30.0993]
[1727079544994,0.11085928,2638.6,2638.4,30.0993]
[1727079545394,0.11085928,2638.6,2638.4,30.47832]
[1727079545988,0.11085928,2638.5,2638.4,30.47832]
[1727079546187,0.11085928,2638.5,2638.4,31.76599381]
[1727079546397,0.37892,2639.2,2638.4,42.65898962]
[1727079546597,4.127,2639.3,2638.7,3.2078]
[1727079546792,0.37884,2639.8,2639.4,0.37889]
[1727079547189,0.37882,2639.9,2639.5,1.15787]
[1727079547396,0.37883,2639.8,2639.5,0.779]
[1727079547700,0.37881,2640.0,2639.5,0.779]
[1727079547902,0.37881,2640.0,2639.6,0.37885]
[1727079548104,0.37879,2640.1,2639.5,0.779]
[1727079548305,0.37879,2640.1,2639.7,0.37884]
[1727079548798,0.3788,2640.0,2639.7,0.37884]
[1727079548998,4.24257,2640.5,2639.6,4.69353186]
[1727079548999,0.3614,2640.5,2640.0,0.3788]
[1727079549301,1.9808852,2641.1,2640.7,0.37869]
[1727079549509,3.58644,2641.2,2640.7,3.2078]
[1727079549806,0.37864,2641.1,2640.7,3.2078]
[1727079550193,2.55,2641.5,2640.7,3.2078]
[1727079550506,0.37864,2641.2,2640.8,0.3816]
[1727079550705,3.2078,2641.3,2640.8,0.3816]
[1727079550901,3.2078,2641.3,2640.9,0.37867]
[1727079551296,0.37861,2641.4,2640.9,0.37867]
[1727079551498,3.2078,2641.3,2640.9,0.37867]
[1727079551900,0.37861,2641.4,2640.9,0.37867]
[1727079552096,2.92859,2641.5,2641.0,0.37865]
[1727079552297,0.37859,2641.5,2641.0,0.37865]
[1727079552700,3.2078,2641.8,2641.0,3.2078]
[1727079552906,0.37857,2641.7,2641.2,0.37863]
[1727079553204,3.58635,2641.8,2641.3,0.37861]
[1727079553707,3.58635,2641.8,2641.0,3.2078]
[1727079553708,0.37856,2641.7,2641.0,3.2078]
[1727079554006,0.37856,2641.7,2641.2,0.37862]
[1727079554201,3.5826,2642.1,2641.1,0.37863]
[1727079554399,0.37859,2641.5,2641.2,29.7]
[1727079554807,0.3786,2641.4,2641.2,29.7]
[1727079554996,2.55,2641.9,2641.2,29.7]
[1727079554997,0.37859,2641.5,2641.2,29.7]
[1727079555309,2.55,2641.9,2641.2,29.7]
[1727079555505,0.37857,2641.7,2641.2,29.7]
[1727079555909,3.5826,2642.1,2641.2,29.7]
[1727079555910,0.37855,2641.8,2641.2,29.7]
[1727079556107,0.37855,2641.8,2641.3,0.37861]
[1727079556307,0.37857,2641.7,2641.2,29.7]
[1727079556502,2.55,2641.9,2641.2,29.7]
[1727079556906,0.37858,2641.6,2641.2,29.7]
[1727079557612,0.37855,2641.8,2641.3,0.37861]
[1727079557801,0.37854,2641.9,2641.4,0.7572]
[1727079558108,3.5826,2642.1,2641.4,0.7572]
[1727079558109,4.52886,2642.1,2641.4,0.3786]
[1727079558515,0.37854,2641.9,2641.4,0.75719]
[1727079558704,0.37854,2641.9,2641.5,0.37859]
[1727079559209,0.37852,2642.0,2641.5,0.37859]
[1727079559404,0.37852,2642.0,2641.6,0.37857]
[1727079559602,3.2078,2642.7,2641.8,3.2078]
[1727079559804,0.37844,2642.6,2641.8,3.2078]
[1727079560006,0.37845,2642.5,2641.8,3.2078]
[1727079560215,0.37845,2642.5,2642.1,0.37849]
[1727079560412,0.37845,2642.5,2642.2,0.74688]
[1727079560608,3.2078,2642.7,2642.2,0.74688]
[1727079560914,0.37845,2642.5,2642.2,0.3684]
[1727079561309,0.37846,2642.4,2642.2,0.3684]
[1727079561814,0.37845,2642.5,2642.2,0.3684]
[1727079562004,0.37848,2642.3,2641.8,3.5805]
[1727079562205,0.37849,2642.2,2641.9,0.37852]
[1727079562402,0.37848,2642.3,2641.9,0.37852]
[1727079563202,0.37849,2642.2,2641.9,0.37852]
[1727079563403,0.37849,2642.2,2641.8,3.95904]
[1727079564010,0.37851,2642.1,2641.7,0.37855]
[1727079564227,3.2078,2642.4,2641.7,3.2078]
[1727079564228,0.37854,2641.8,2641.7,3.2078]
[1727079564415,0.37857,2641.7,2641.5,0.3684]
[1727079564614,3.2078,2641.7,2641.5,0.3684]
[1727079565009,4.15406,2642.1,2641.5,0.3684]
[1727079565304,3.2078,2642.1,2641.5,0.3684]
[1727079565611,0.37854,2641.8,2641.5,0.3684]
[1727079566316,0.3786,2641.5,2641.3,0.1081]
[1727079566514,0.37858,2641.6,2641.3,0.1081]
[1727079566717,3.2078,2641.8,2641.3,0.85401]
[1727079566718,0.37857,2641.7,2641.3,0.85401]
[1727079567019,3.58635,2641.8,2641.3,0.854]
[1727079567221,0.37855,2641.8,2641.4,0.3786]
[1727079567819,8.28107,2642.1,2641.4,0.3786]
[1727079568114,0.37855,2641.8,2641.4,0.3786]
[1727079569016,3.58636,2641.7,2641.3,0.4754]
[1727079569320,3.58636,2641.7,2641.3,0.85402]
[1727079569819,0.37855,2641.8,2641.4,0.3786]
[1727079570011,0.37855,2641.8,2641.3,0.85401]
[1727079570212,0.37856,2641.7,2641.3,0.85401]
[1727079570410,3.58635,2641.8,2641.3,0.85401]
[1727079570921,3.58635,2641.8,2641.4,0.3786]
[1727079571716,0.37852,2642.0,2641.5,7.3669]
[1727079571916,0.37852,2642.0,2641.6,0.37857]
[1727079572720,0.37853,2641.9,2641.5,3.95988]
[1727079572924,3.58631,2642.1,2641.5,3.5813]
[1727079573121,3.58631,2642.1,2641.8,0.37854]
[1727079573617,0.37852,2642.0,2641.7,0.37855]
[1727079574326,4.127,2642.8,2641.8,6.9934]
[1727079574527,0.37837,2643.0,2642.1,3.2078]
[1727079574744,0.37837,2643.0,2642.2,1.1632]
[1727079575045,0.37837,2643.0,2642.5,0.37844]
[1727079575223,3.2078,2643.3,2642.4,3.2078]
[1727079575527,3.2078,2643.2,2642.9,0.37838]
[1727079575825,3.2078,2643.3,2643.0,0.37837]
[1727079576029,3.2078,2643.2,2642.9,0.37838]
[1727079576232,3.2078,2643.6,2642.4,3.2078]
[1727079576524,3.2078,2643.2,2642.9,0.37838]
[1727079576920,0.37834,2643.3,2642.9,0.37838]
[1727079577115,3.2078,2643.2,2642.9,0.37838]
[1727079577319,3.2078,2643.5,2642.4,4.15395]
[1727079577520,3.2078,2643.5,2643.1,0.37835]
[1727079577521,3.58611,2643.5,2643.1,0.37835]
[1727079577721,0.37822,2644.1,2643.6,0.37827]
[1727079577933,0.37822,2644.1,2643.7,0.37826]
[1727079578122,3.2078,2644.4,2644.0,0.37823]
[1727079578332,3.2078,2644.4,2643.8,3.2078]
[1727079578527,3.2078,2644.4,2643.9,0.3651]
[1727079578721,3.2078,2644.4,2644.0,29.7]
[1727079579224,3.58597,2644.4,2644.0,29.7]
[1727079579423,3.2078,2644.4,2644.0,29.7]
[1727079580126,3.2078,2644.4,2644.0,30.07822]
[1727079580332,2.948,2645.1,2644.0,30.07822]
[1727079580333,3.2078,2644.9,2644.1,6.9894]
[1727079580634,3.2078,2644.9,2644.4,3.2078]
[1727079581126,3.2078,2644.9,2644.0,29.7]
[1727079581127,3.58591,2644.9,2644.1,3.58601]
[1727079581927,0.37812,2644.8,2644.1,3.2078]
[1727079582131,0.37813,2644.7,2644.1,3.2078]
[1727079582328,3.2078,2644.9,2644.0,30.0783]
[1727079582527,3.2078,2644.9,2644.1,3.2078]
[1727079582528,0.37814,2644.6,2644.1,3.2078]
[1727079582724,3.2078,2644.9,2644.1,3.2078]
[1727079582925,0.37813,2644.8,2644.1,3.2078]